bitfinex/quotes_SOLUSD_20220117
["timestamp","ask_amount","ask_price","bid_price","bid_amount"]
[1642430658970,24.60392643,143.64,143.57,34.6189]
[1642430660174,22.6271,143.64,143.57,34.6189]
[1642430660874,24.60392643,143.64,143.57,34.6189]
[1642430662076,24.60392643,143.64,143.57,24.1739]
[1642430662874,1.97682643,143.63,143.57,24.1739]
[1642430663776,1.97682643,143.62,143.57,24.1739]
[1642430664778,1.97682643,143.63,143.57,24.1739]
[1642430665579,1.97682643,143.63,143.57,34.619]
[1642430665879,1.97682643,143.63,143.57,24.1739]
[1642430666379,1.97682643,143.63,143.52,1.97772006]
[1642430666579,1.97682643,143.63,143.52,25.93102006]
[1642430666580,13.80302601,143.63,143.52,25.93102006]
[1642430666788,1.97682643,143.62,143.52,23.9533]
[1642430666980,8.66198594,143.61,143.52,23.9533]
[1642430667180,10.4504,143.59,143.51,1.97772006]
[1642430667380,22.9081,143.58,143.51,1.97772006]
[1642430667883,22.9081,143.58,143.49,24.68422006]
[1642430668079,22.9081,143.58,143.5,36.50883438]
[1642430668280,22.9081,143.58,143.5,117.19883438]
[1642430668480,1.97682643,143.6,143.51,0.25]
[1642430668681,1.97682643,143.6,143.51,23.5776]
[1642430668882,1.97682643,143.59,143.51,29.8376]
[1642430669083,1.97682643,143.59,143.51,23.5776]
[1642430669282,1.97682643,143.59,143.51,23.8376]
[1642430669486,1.97682643,143.59,143.52,70.24]
[1642430669884,1.97682643,143.61,143.53,0.25]
[1642430670083,1.97682643,143.61,143.54,10.4467]
[1642430670283,1.97682643,143.61,143.55,37.44418266]
[1642430671283,1.97682643,143.61,143.54,10.4467]
[1642430671485,26.58322643,143.62,143.54,10.4467]
[1642430672418,26.58322643,143.62,143.55,38.47764496]
[1642430673521,26.58322643,143.62,143.54,10.4467]
[1642430679030,26.58322643,143.62,143.53,23.5289]
[1642430680031,26.58322643,143.62,143.54,44.8899788]
[1642430680231,26.58322643,143.62,143.55,10.4464]
[1642430680833,26.58322643,143.62,143.55,35.3657]
[1642430681232,26.58322643,143.62,143.56,0.25]
[1642430681433,26.58322643,143.62,143.56,10.6959]
[1642430681731,24.6064,143.62,143.56,10.4459]
[1642430682834,26.58322643,143.62,143.56,10.4459]
[1642430683238,26.58322643,143.62,143.57,70.24]
[1642430683239,1.97682643,143.62,143.57,70.24]
[1642430683435,1.97682643,143.62,143.58,80.684]
[1642430683836,1.97682643,143.63,143.59,0.25]
[1642430684035,1.97682643,143.63,143.59,8.913]
[1642430684237,1.97682643,143.63,143.59,45.92635656]
[1642430684438,1.97682643,143.63,143.59,56.36955656]
[1642430684839,5.59179401,143.66,143.59,56.36955656]
[1642430685037,1.97682643,143.66,143.59,79.10225656]
[1642430686639,1.97682643,143.66,143.59,149.34225656]
[1642430686841,1.97682643,143.67,143.59,165.67225656]
[1642430687039,1.97682643,143.67,143.59,166.85467882]
[1642430687238,1.97682643,143.67,143.59,167.11467882]
[1642430687839,35.944802,143.68,143.59,167.11467882]
[1642430688039,35.944802,143.68,143.59,161.11467882]
[1642430688839,25.72602643,143.69,143.59,167.11467882]
[1642430689243,1.97682643,143.69,143.59,167.11467882]
[1642430689539,25.08472643,143.7,143.59,167.11467882]
[1642430689740,63.08307266,143.7,143.59,167.11467882]
[1642430690140,25.08472643,143.7,143.59,167.11467882]
[1642430690540,23.1079,143.7,143.59,167.11467882]
[1642430691843,24.69372643,143.72,143.59,167.11467882]
[1642430694249,22.7169,143.72,143.59,167.11467882]
[1642430698779,22.7169,143.72,143.59,158.45167882]
[1642430699776,22.7169,143.72,143.59,158.20167882]
[1642430700777,22.7169,143.72,143.59,150.49925656]
[1642430701178,22.7169,143.72,143.59,156.49925656]
[1642430701379,22.7169,143.72,143.59,150.49925656]
[1642430701777,32.7869,143.72,143.59,156.49925656]
[1642430702377,32.7869,143.72,143.59,150.49925656]
[1642430702577,45.20522643,143.72,143.59,150.49925656]
[1642430703477,45.20522643,143.72,143.59,151.94167882]
[1642430703777,45.20522643,143.72,143.6,0.25]
[1642430703980,34.76372643,143.72,143.63,10.4401]
[1642430704176,34.76372643,143.72,143.64,37.08097344]
[1642430704382,32.7869,143.72,143.64,37.33097344]
[1642430704978,22.7169,143.72,143.64,37.33097344]
[1642430705181,22.7169,143.72,143.65,10.4392]
[1642430705578,22.7169,143.72,143.64,37.33097344]
[1642430705579,22.7169,143.72,143.66,0.25]
[1642430705779,1.97682643,143.74,143.64,43.59097344]
[1642430706180,1.97682643,143.74,143.65,10.07]
[1642430706382,1.97682643,143.74,143.66,0.25]
[1642430706880,24.2025,143.75,143.66,70.49]
[1642430707282,24.2025,143.75,143.66,70.75]
[1642430707683,24.2025,143.75,143.67,10.4369]
[1642430707885,24.2025,143.75,143.68,0.25]
[1642430708383,24.89012643,143.76,143.68,0.25]
[1642430708585,1.97682643,143.76,143.68,0.25]
[1642430708784,1.97682643,143.76,143.69,10.4363]
[1642430709285,33.67567709,143.76,143.7,0.25]
[1642430709485,33.67567709,143.76,143.72,19.29254367]
[1642430709683,33.67567709,143.76,143.72,38.58508734]
[1642430709884,31.69885066,143.76,143.72,38.58508734]
[1642430711790,1.97682643,143.77,143.72,38.58508734]
[1642430712389,1.97682643,143.76,143.72,38.58508734]
[1642430714594,1.97682643,143.76,143.72,19.29254367]
[1642430714794,1.97682643,143.76,143.68,10.4367]
[1642430714994,1.97682643,143.76,143.66,47.2893]
[1642430715195,25.44462643,143.76,143.72,19.29254367]
[1642430715396,1.97682643,143.76,143.72,19.29254367]
[1642430715800,1.97682643,143.75,143.72,19.29254367]
[1642430716596,6.06439994,143.74,143.72,19.29254367]
[1642430719806,6.06439994,143.74,143.73,19.29254367]
[1642430720505,6.06439994,143.74,143.73,38.58508734]
[1642430721306,8.04122637,143.74,143.73,38.58508734]
[1642430723313,1.97682643,143.74,143.73,38.58508734]
[1642430723909,1.97682643,143.75,143.73,38.58508734]
[1642430724930,1.97682643,143.75,143.73,19.29254367]
[1642430725130,1.97682643,143.75,143.74,19.29254367]
[1642430725731,1.97682643,143.75,143.74,38.58508734]
[1642430727631,1.97682643,143.76,143.74,38.58508734]
[1642430729132,1.97682643,143.75,143.74,38.58508734]
[1642430729939,5.0090264,143.75,143.74,38.58508734]
[1642430730534,1.97682643,143.75,143.74,38.58508734]
[1642430733436,33.3095337,143.77,143.74,38.58508734]
[1642430733636,33.3095337,143.77,143.74,19.29254367]
[1642430733837,33.3095337,143.77,143.76,19.29254367]
[1642430734039,39.37393364,143.77,143.76,19.29254367]
[1642430734238,6.06439994,143.77,143.76,19.29254367]
[1642430734842,14.05186758,143.78,143.76,19.29254367]
[1642430735241,3.61496758,143.78,143.76,19.29254367]
[1642430735639,3.61496758,143.77,143.76,19.29254367]
[1642430735840,7.5822456,143.77,143.76,19.29254367]
[1642430736642,38.51746183,143.78,143.76,19.29254367]
[1642430737042,60.03219997,143.77,143.76,19.29254367]
[1642430737642,63.06439994,143.77,143.76,19.29254367]
[1642430739043,51.57670565,143.76,143.73,19.29254367]
[1642430739243,58.17670565,143.76,143.65,70.24]
[1642430739448,22.9629,143.75,143.71,19.29254367]
[1642430739745,27.05606466,143.74,143.71,19.29254367]
[1642430739943,3.03219997,143.73,143.71,19.29254367]
[1642430740943,10.81919997,143.73,143.71,19.29254367]
[1642430741347,10.81919997,143.73,143.62,12.04772006]
[1642430741348,73.0,143.72,143.62,1.97772006]
[1642430741547,74.75619958,143.72,143.62,1.97772006]
[1642430741743,10.4429,143.7,143.62,1.97772006]
[1642430742345,10.4429,143.7,143.63,46.29713503]
[1642430742548,23.0954,143.71,143.63,46.29713503]
[1642430742746,23.0954,143.71,143.64,0.25]
[1642430742946,28.16066758,143.74,143.64,0.25]
[1642430743148,22.6293,143.73,143.64,23.2798]
[1642430744549,22.6293,143.73,143.64,33.7195]
[1642430746850,33.07,143.73,143.64,33.7195]
[1642430747553,33.07,143.73,143.64,75.79798969]
[1642430748253,33.07,143.73,143.64,33.4695]
[1642430749354,1.98278639,143.72,143.64,33.4695]
[1642430749756,1.98278639,143.72,143.65,0.25]
[1642430749955,8.75855889,143.71,143.65,0.25]
[1642430751384,8.75855889,143.71,143.64,33.4695]
[1642430752686,8.75855889,143.71,143.61,1.97772006]
[1642430752985,23.3996,143.7,143.61,1.97772006]
[1642430753787,23.3996,143.7,143.61,12.41992006]
[1642430753986,1.98278639,143.71,143.62,70.24]
[1642430754185,1.98278639,143.71,143.63,23.9013]
[1642430754385,1.98278639,143.71,143.64,0.25]
[1642430754587,1.98278639,143.71,143.63,23.9013]
[1642430754785,1.98278639,143.71,143.64,39.43376865]
[1642430754986,1.98278639,143.72,143.65,80.31]
[1642430755186,1.98278639,143.72,143.65,33.0441]
[1642430756887,25.30498639,143.72,143.65,33.0441]
[1642430760792,25.30498639,143.72,143.65,10.07]
[1642430760994,25.30498639,143.72,143.63,10.4406]
[1642430761594,35.74628639,143.72,143.63,10.4406]
[1642430761792,1.98278639,143.71,143.63,10.4406]
[1642430761993,1.12679839,143.7,143.63,10.4406]
[1642430764896,1.98278639,143.71,143.63,10.4406]
[1642430768297,1.98278639,143.71,143.64,44.53413456]
[1642430768798,1.98278639,143.71,143.65,10.4389]
[1642430769299,1.98278639,143.71,143.65,19.3629]
[1642430769598,25.30498639,143.72,143.65,19.3629]
[1642430769799,2.80264623,143.71,143.65,19.3629]
[1642430769998,2.80264623,143.71,143.65,10.4389]
[1642430774704,25.30498639,143.72,143.65,10.4389]
[1642430775805,25.30498639,143.72,143.65,16.4389]
[1642430776005,24.30498639,143.72,143.65,51.98807915]
[1642430778408,24.30498639,143.72,143.65,45.98807915]
[1642430778708,24.30498639,143.72,143.65,10.4389]
[1642430779110,22.3222,143.72,143.65,10.4389]
[1642430779317,22.3222,143.72,143.65,16.4389]
[1642430779711,28.14383637,143.72,143.65,16.4389]
[1642430780812,28.14383637,143.72,143.65,10.4389]
[1642430781313,22.3222,143.72,143.65,10.4389]
[1642430783614,24.30498639,143.72,143.65,10.4389]
[1642430784113,7.6768442,143.71,143.65,10.4389]
[1642430785843,7.6768442,143.71,143.64,24.4612]
[1642430786644,24.30498639,143.72,143.64,24.4612]
[1642430787745,52.95493945,143.72,143.64,94.7012]
[1642430790154,1.98278639,143.71,143.64,94.7012]
[1642430791050,52.95493945,143.72,143.64,94.7012]
[1642430791449,52.95493945,143.72,143.64,105.1411]
[1642430793852,24.30498639,143.72,143.64,105.1411]
[1642430794955,29.49220285,143.71,143.64,105.1411]
[1642430796156,24.30498639,143.72,143.64,105.1411]
[1642430796356,1.98278639,143.71,143.64,105.1411]
[1642430797258,57.9811304,143.72,143.64,105.1411]
[1642430798158,1.98278639,143.71,143.64,105.1411]
[1642430801563,1.98278639,143.71,143.64,34.9011]
[1642430812004,1.98278639,143.71,143.64,81.76246188]
[1642430812909,1.98278639,143.71,143.64,34.9011]
[1642430816913,12.42418639,143.71,143.64,24.4612]
[1642430817112,12.42418639,143.71,143.62,10.4411]
[1642430817312,24.0852,143.7,143.61,1.97772006]
[1642430818318,10.4428,143.69,143.61,1.97772006]
[1642430818513,16.3828,143.69,143.61,1.97772006]
[1642430818716,10.07,143.68,143.6,1.97772006]
[1642430819917,1.98278639,143.66,143.6,1.97772006]
[1642430820117,1.98278639,143.66,143.57,24.3248]
[1642430820517,12.42948639,143.66,143.57,24.3248]
[1642430821318,1.98278639,143.65,143.57,24.3248]
[1642430822553,10.4465,143.64,143.57,24.3248]
[1642430825855,10.4465,143.64,143.56,10.4457]
[1642430826454,10.4465,143.64,143.56,33.5809]
[1642430834163,35.3053,143.64,143.56,33.5809]
[1642430847176,35.3053,143.64,143.54,10.4467]
[1642430847374,10.4492,143.6,143.53,1.97772006]
[1642430847574,24.0258,143.59,143.53,1.97772006]
[1642430848579,10.4507,143.58,143.53,1.97772006]
[1642430848777,10.4507,143.58,143.5,23.3984]
[1642430848979,10.4507,143.58,143.49,1.97772006]
[1642430849178,23.7722,143.57,143.49,1.97772006]
[1642430849578,33.8422,143.57,143.49,1.97772006]
[1642430849781,23.7722,143.57,143.48,25.03652006]
[1642430850587,10.4528,143.55,143.48,25.03652006]
[1642430851182,10.4528,143.55,143.48,23.0588]
[1642430857717,10.4528,143.55,143.44,12.43162006]
[1642430857917,33.6369,143.54,143.44,1.97772006]
[1642430858116,10.4569,143.51,143.44,1.97772006]
[1642430858419,19.1149,143.51,143.44,1.97772006]
[1642430858819,23.4627,143.5,143.44,1.97772006]
[1642430859519,23.4627,143.5,143.42,24.4525]
[1642430859718,10.07,143.52,143.42,24.4525]
[1642430860518,10.4562,143.51,143.42,24.4525]
[1642430860718,10.4562,143.51,143.42,67.43488625]
[1642430860920,10.4562,143.51,143.43,0.25]
[1642430861321,10.4562,143.51,143.42,67.43488625]
[1642430862621,10.4562,143.51,143.42,77.89058625]
[1642430864824,10.4562,143.51,143.42,34.9082]
[1642430865226,10.4562,143.51,143.42,24.4525]
[1642430865424,22.5155,143.5,143.42,24.4525]
[1642430865626,10.4572,143.49,143.42,24.4525]
[1642430870831,10.4572,143.49,143.42,23.4525]
[1642430871429,10.4572,143.49,143.38,22.535]
[1642430871628,22.5985,143.48,143.39,22.555]
[1642430871831,10.46,143.46,143.39,22.555]
[1642430876331,22.5985,143.48,143.39,22.555]
[1642430877628,10.4587,143.47,143.39,22.555]
[1642430877829,23.2181,143.46,143.39,22.555]
[1642430883275,33.6775,143.46,143.39,22.555]
[1642430883574,33.6775,143.46,143.36,12.43742006]
[1642430883773,10.07,143.45,143.36,1.97772006]
[1642430884375,10.4627,143.43,143.36,1.97772006]
[1642430885274,10.4627,143.43,143.35,61.10910098]
[1642430885577,10.4627,143.43,143.35,24.969]
[1642430887381,23.4674,143.42,143.35,24.969]
[1642430887576,33.9299,143.42,143.35,24.969]
[1642430891479,23.4674,143.42,143.35,24.969]
[1642430891681,10.4611,143.44,143.35,24.969]
[1642430891879,10.4611,143.44,143.36,0.25]
[1642430893180,24.7305,143.43,143.36,0.25]
[1642430894678,24.7305,143.43,143.35,79.05848214]
[1642430896185,24.7305,143.43,143.36,0.25]
[1642430897590,24.7305,143.43,143.36,10.7099]
[1642430898696,10.4592,143.47,143.36,10.7099]
[1642430898894,23.0759,143.47,143.39,10.4578]
[1642430899193,23.0759,143.47,143.4,41.390951]
[1642430900527,23.0759,143.47,143.4,51.848251]
[1642430900723,23.0759,143.47,143.41,0.25]
[1642430900923,34.0936,143.49,143.41,0.25]
[1642430901125,34.0936,143.49,143.41,23.3811]
[1642430901427,34.0936,143.49,143.41,23.1311]
[1642430903323,10.4576,143.49,143.41,23.1311]
[1642430906026,24.5363,143.5,143.41,29.1841]
[1642430906226,1.98278639,143.51,143.42,0.25]
[1642430906426,1.98278639,143.51,143.43,10.07]
[1642430906630,1.98278639,143.51,143.44,35.67669629]
[1642430906827,1.98278639,143.52,143.45,10.4533]
[1642430907228,1.98278639,143.52,143.46,0.25]
[1642430907929,10.4538,143.54,143.46,0.25]
[1642430908730,12.20999958,143.54,143.46,0.25]
[1642430909132,12.20999958,143.54,143.45,22.5812]
[1642430909332,12.20999958,143.54,143.41,1.97772006]
[1642430909532,10.4566,143.5,143.41,12.04772006]
[1642430909932,12.21279958,143.5,143.41,12.04772006]
[1642430910133,12.21279958,143.5,143.41,10.07]
[1642430910434,12.21279958,143.5,143.39,37.37232006]
[1642430910633,24.542,143.49,143.39,37.37232006]
[1642430910833,10.4579,143.48,143.39,37.37232006]
[1642430911132,1.98278639,143.52,143.4,10.07]
[1642430911332,1.98278639,143.52,143.41,22.9703]
[1642430911734,3.73898597,143.52,143.41,22.9703]
[1642430911933,34.2797,143.51,143.42,10.7053]
[1642430912133,34.2797,143.51,143.42,10.4553]
[1642430912633,1.75619958,143.5,143.41,22.9703]
[1642430913733,12.21289958,143.5,143.41,22.9703]
[1642430915734,10.4567,143.5,143.41,33.4266]
[1642430915934,23.8238,143.51,143.42,41.9628678]
[1642430916133,23.8238,143.51,143.42,0.25]
[1642430917543,23.8238,143.51,143.42,10.7056]
[1642430918149,23.8238,143.51,143.42,10.4556]
[1642430918649,34.2796,143.51,143.42,10.4556]
[1642430918850,34.2796,143.51,143.43,0.25]
[1642430919684,34.2796,143.51,143.42,10.4556]
[1642430926290,23.8238,143.51,143.43,0.25]
[1642430926490,23.8238,143.51,143.45,10.4535]
[1642430928292,23.8238,143.51,143.43,34.6396]
[1642430930097,23.8238,143.51,143.43,44.7096]
[1642430931699,23.8238,143.51,143.43,44.4596]
[1642430936405,23.8238,143.51,143.43,50.4596]
[1642430936811,23.8238,143.51,143.43,44.4596]
[1642430937205,1.98278639,143.52,143.44,0.25]
[1642430937405,1.98278639,143.52,143.44,10.704]
[1642430938049,24.57428639,143.53,143.44,10.704]
[1642430938242,35.02878639,143.53,143.44,10.704]
[1642430939442,35.02878639,143.53,143.44,0.25]
[1642430940343,1.98278639,143.52,143.44,0.25]
[1642430940547,10.4557,143.51,143.44,0.25]
[1642430944150,1.98278639,143.52,143.44,0.25]
[1642430945653,12.43788639,143.52,143.44,0.25]
[1642430946152,22.8297,143.51,143.44,0.25]
[1642430948067,12.43788639,143.52,143.44,0.25]
[1642430948263,1.98278639,143.52,143.44,20.7742]
[1642430948560,1.98278639,143.52,143.45,23.2164]
[1642430948760,1.98278639,143.52,143.46,0.25]
[1642430949160,1.98278639,143.53,143.46,0.25]
[1642430949579,25.27098639,143.53,143.46,0.25]
[1642430950383,35.72538639,143.53,143.46,0.25]
[1642430953883,25.27098639,143.53,143.46,0.25]
[1642430954783,33.7426,143.53,143.46,0.25]
[1642430954984,33.7426,143.53,143.45,23.2164]
[1642430955183,33.7426,143.53,143.43,1.97772006]
[1642430955384,33.7426,143.53,143.44,0.25]
[1642430955785,35.72538639,143.53,143.44,0.25]
[1642430956385,35.72538639,143.53,143.43,0.25]
[1642430956586,35.72538639,143.53,143.43,22.7565]
[1642430957487,1.98278639,143.52,143.43,22.7565]
[1642430957686,10.4562,143.51,143.43,22.7565]
[1642430957888,22.5164,143.5,143.43,22.7565]
[1642430959289,32.9729,143.5,143.43,22.7565]
[1642430960591,12.43838639,143.52,143.43,22.7565]
[1642430960991,1.98278639,143.52,143.43,93.2565]
[1642430961193,1.98278639,143.52,143.43,92.9965]
[1642430961391,1.98278639,143.52,143.43,99.2565]
[1642430961590,1.98278639,143.52,143.44,53.02346752]
[1642430961790,1.98278639,143.52,143.45,70.49]
[1642430961991,1.98278639,143.52,143.45,94.7954]
[1642430962190,12.43678639,143.54,143.45,94.7954]
[1642430963291,12.43678639,143.54,143.45,96.77312006]
[1642430963292,10.454,143.54,143.45,96.77312006]
[1642430963794,25.64388639,143.55,143.46,10.4527]
[1642430963992,1.98278639,143.55,143.47,22.9422]
[1642430964193,12.43528639,143.56,143.47,93.4322]
[1642430964393,1.98278639,143.56,143.47,93.6922]
[1642430964693,1.98278639,143.56,143.47,103.8845]
[1642430965094,1.98278639,143.56,143.47,33.6445]
[1642430965898,12.43488639,143.56,143.47,23.1922]
[1642430966098,10.4521,143.56,143.46,10.07]
[1642430966301,22.8302,143.55,143.46,10.07]
[1642430967298,24.81298639,143.55,143.46,10.07]
[1642430967597,10.4557,143.53,143.43,72.46338596]
[1642430967798,22.7532,143.52,143.44,0.25]
[1642430967998,22.7532,143.52,143.44,10.32]
[1642430969500,33.2088,143.52,143.44,20.7744]
[1642430970701,33.2088,143.52,143.43,24.79162006]
[1642430970902,33.2088,143.52,143.44,0.25]
[1642430972402,33.2088,143.52,143.44,10.7045]
[1642430974804,33.2088,143.52,143.44,0.25]
[1642430976606,33.2088,143.52,143.44,10.7044]
[1642430979111,33.2088,143.52,143.43,22.8139]
[1642430979307,33.2088,143.52,143.42,1.97772006]
[1642430979608,42.66899958,143.52,143.42,1.97772006]
[1642430980306,10.4586,143.49,143.42,1.97772006]
[1642430980511,23.1765,143.48,143.43,36.10719917]
[1642430981107,23.1765,143.48,143.4,23.0728]
[1642430981307,23.1765,143.48,143.41,0.25]
[1642430982111,23.1765,143.48,143.41,38.29115703]
[1642430983310,23.1765,143.48,143.41,48.74775703]
[1642430984611,23.1765,143.48,143.41,10.7066]
[1642430984811,23.1765,143.48,143.4,23.0728]
[1642430985010,33.6347,143.48,143.4,23.0728]
[1642430985412,33.6347,143.48,143.39,5.61613901]
[1642430985814,10.07,143.47,143.39,5.61613901]
[1642430986011,10.4601,143.46,143.39,5.61613901]
[1642430986213,33.4526,143.46,143.39,3.63841895]
[1642430986613,43.5226,143.46,143.37,23.0711]
[1642430987615,43.5226,143.46,143.34,12.43932006]
[1642430987814,43.5226,143.46,143.34,1.97772006]
[1642430988414,43.5226,143.46,143.35,39.25615378]
[1642430988615,43.5226,143.46,143.35,49.71725378]
[1642430988814,43.5226,143.46,143.35,51.24296861]
[1642430989015,43.5226,143.46,143.36,1.52571483]
[1642430989215,43.5226,143.46,143.36,1.77571483]
[1642430989619,43.5226,143.46,143.36,26.52411483]
[1642430989820,43.5226,143.46,143.36,1.52571483]
[1642430990020,43.5226,143.46,143.35,1.97772006]
[1642430990422,71.99619958,143.45,143.35,1.97772006]
[1642430990642,10.4639,143.42,143.35,1.97772006]
[1642430991242,10.4639,143.42,143.34,46.18871301]
[1642430992346,24.0917,143.43,143.35,0.25]
[1642430993545,24.0917,143.43,143.36,10.4604]
[1642430993847,24.0917,143.43,143.37,0.25]
[1642430995753,34.5533,143.43,143.37,0.25]
[1642430995950,34.5533,143.43,143.36,0.25]
[1642430996150,34.5533,143.43,143.35,23.3055]
[1642430996752,34.5533,143.43,143.36,0.25]
[1642430997954,24.0917,143.43,143.36,0.25]
[1642431001255,24.0917,143.43,143.35,79.07964875]
[1642431001456,34.5534,143.43,143.35,33.7666]
[1642431001654,34.5534,143.43,143.35,23.3055]
[1642431002458,34.5534,143.43,143.36,46.89350268]
[1642431002656,34.5534,143.43,143.36,47.14350268]
[1642431003661,34.5534,143.43,143.36,0.25]
[1642431004460,10.07,143.46,143.36,9.045]
[1642431004659,12.89082475,143.48,143.37,46.68395384]
[1642431004660,12.05278639,143.48,143.37,46.68395384]
[1642431004860,1.98278639,143.48,143.38,24.2013]
[1642431006062,23.6853,143.49,143.38,24.2013]
[1642431006560,10.4581,143.48,143.4,10.4563]
[1642431006761,22.5312,143.47,143.41,0.25]
[1642431008362,22.5312,143.47,143.38,34.4099]
[1642431008562,32.99,143.47,143.38,34.4099]
[1642431008766,32.99,143.47,143.39,0.25]
[1642431008965,32.99,143.47,143.38,34.4099]
[1642431009165,32.99,143.47,143.36,1.97772006]
[1642431009364,10.07,143.46,143.36,1.97772006]
[1642431009563,10.4621,143.43,143.36,1.97772006]
[1642431009764,10.4621,143.43,143.35,26.34522006]
[1642431010064,10.4621,143.43,143.36,35.74919357]
[1642431010265,23.233,143.42,143.36,35.74919357]
[1642431010866,23.233,143.42,143.35,1.97772006]
[1642431011062,33.6954,143.42,143.36,0.25]
[1642431011264,43.7654,143.42,143.32,1.97772006]
[1642431011464,70.24,143.41,143.32,1.97772006]
[1642431011663,23.9138,143.4,143.32,1.97772006]
[1642431011864,104.2238,143.4,143.32,51.00091179]
[1642431012665,114.688,143.4,143.32,51.00091179]
[1642431012869,114.688,143.4,143.32,49.02319173]
[1642431013266,114.688,143.4,143.33,0.25]
[1642431013768,114.688,143.4,143.32,49.02319173]
[1642431014169,114.688,143.4,143.32,48.52319173]
[1642431016277,114.688,143.4,143.33,0.25]
[1642431018699,114.688,143.4,143.3,1.97772006]
[1642431018899,114.688,143.4,143.31,0.25]
[1642431019600,114.688,143.4,143.31,49.34903979]
[1642431020401,121.95983213,143.4,143.31,49.34903979]
[1642431021501,29.70889686,143.39,143.31,49.34903979]
[1642431021701,10.4661,143.38,143.31,0.25]
[1642431021900,10.4661,143.38,143.3,0.25]
[1642431021901,23.6811,143.37,143.3,0.25]
[1642431022802,23.6811,143.37,143.3,46.60953831]
[1642431023604,34.1475,143.37,143.3,46.60953831]
[1642431026413,23.6811,143.37,143.3,46.60953831]
[1642431027014,23.6811,143.37,143.29,26.14522006]
[1642431027215,33.7511,143.37,143.29,1.97772006]
[1642431027613,44.2176,143.37,143.29,1.97772006]
[1642431028015,26.16800793,143.36,143.29,1.97772006]
[1642431028214,10.07,143.35,143.29,1.97772006]
[1642431029216,10.07,143.35,143.28,48.51007515]
[1642431029620,10.4712,143.34,143.28,48.51007515]
[1642431029818,20.5412,143.34,143.28,48.51007515]
[1642431030423,43.0995,143.34,143.28,48.51007515]
[1642431032123,32.6283,143.34,143.28,48.51007515]
[1642431032321,10.07,143.34,143.29,0.25]
[1642431033624,33.3177,143.37,143.29,0.25]
[1642431033821,23.2477,143.37,143.29,1.78450482]
[1642431034424,23.2477,143.37,143.29,7.78450482]
[1642431035622,23.2477,143.37,143.29,18.24990482]
[1642431037929,23.2477,143.37,143.29,16.7154]
[1642431040230,23.2477,143.37,143.29,16.4654]
[1642431040630,23.2477,143.37,143.29,10.4654]
[1642431040829,56.03959718,143.37,143.29,10.4654]
[1642431041530,56.03959718,143.37,143.28,71.51517515]
[1642431041730,56.03959718,143.37,143.29,0.25]
[1642431043054,23.2477,143.37,143.29,0.25]
[1642431044054,53.27702175,143.37,143.29,0.25]
[1642431044656,23.2477,143.37,143.29,0.25]
[1642431045756,29.43884244,143.36,143.29,0.25]
[1642431045957,29.43884244,143.36,143.28,33.4713]
[1642431046156,23.2496,143.35,143.28,33.4713]
[1642431047256,23.2496,143.35,143.29,0.25]
[1642431049357,23.2496,143.35,143.28,23.0051]
[1642431049556,70.24,143.34,143.26,1.97772006]
[1642431049759,24.9496,143.33,143.26,1.97772006]
[1642431049959,35.0196,143.33,143.26,1.97772006]
[1642431050361,5.03746819,143.32,143.26,1.97772006]
[1642431050559,10.07,143.31,143.24,22.8203]
[1642431051059,10.07,143.31,143.23,1.97772006]
[1642431051263,33.808,143.31,143.23,1.97772006]
[1642431051466,44.2795,143.31,143.23,1.97772006]
[1642431051664,44.2795,143.31,143.22,52.01315761]
[1642431052765,44.2795,143.31,143.22,50.03543755]
[1642431055168,33.808,143.31,143.22,50.03543755]
[1642431056469,33.808,143.31,143.23,0.25]
[1642431057069,10.07,143.31,143.23,10.7196]
[1642431057269,24.9047,143.35,143.23,42.0122]
[1642431057473,24.9047,143.35,143.24,70.24]
[1642431057871,24.9047,143.35,143.25,1.78378814]
[1642431058271,24.9047,143.35,143.26,49.24610297]
[1642431058673,24.9047,143.35,143.27,10.7162]
[1642431064783,24.9047,143.35,143.27,10.4662]